bitfinex/quotes_BTCUSD_20241024
["timestamp","ask_amount","ask_price","bid_price","bid_amount"]
[1729747429364,0.85254779,67418.0,67417.0,0.00165]
[1729747429564,0.91893651,67418.0,67417.0,0.00165]
[1729747431240,0.85254779,67418.0,67417.0,0.00165]
[1729747431596,0.91894402,67418.0,67417.0,0.00165]
[1729747432578,0.71717384,67418.0,67417.0,0.00165]
[1729747432914,0.85254779,67418.0,67417.0,0.00165]
[1729747433609,1.0159808,67418.0,67417.0,0.00165]
[1729747434478,1.10449635,67418.0,67417.0,0.00165]
[1729747436831,0.85254779,67418.0,67417.0,0.00165]
[1729747440416,0.80802646,67418.0,67417.0,0.00165]
[1729747443656,0.85083394,67418.0,67417.0,0.00165]
[1729747445195,0.85462466,67418.0,67417.0,0.00165]
[1729747447984,0.94547728,67418.0,67417.0,0.00165]
[1729747449102,0.85462466,67418.0,67417.0,0.00165]
[1729747449408,0.94547728,67418.0,67417.0,0.00165]
[1729747449604,0.85462466,67418.0,67417.0,0.00165]
[1729747458463,0.71891663,67418.0,67417.0,0.00165]
[1729747477616,0.64371663,67418.0,67417.0,0.00165]
[1729747477820,0.54661663,67418.0,67417.0,0.00165]
[1729747480136,0.2802602,67418.0,67417.0,0.00165]
[1729747480338,0.37311282,67418.0,67417.0,0.00165]
[1729747480740,0.4579747,67418.0,67417.0,0.00165]
[1729747481476,0.63147851,67418.0,67417.0,0.00165]
[1729747485956,0.78767851,67418.0,67417.0,0.00165]
[1729747486161,0.63147851,67418.0,67417.0,0.00165]
[1729747488627,0.54282591,67418.0,67417.0,0.00165]
[1729747495470,0.54082591,67418.0,67417.0,0.00165]
[1729747495666,0.54282591,67418.0,67417.0,0.00165]
[1729747502818,0.70716681,67418.0,67417.0,0.00165]
[1729747503394,0.70716189,67418.0,67417.0,0.00165]
[1729747507919,0.84882507,67418.0,67417.0,0.00165]
[1729747511766,0.70716189,67418.0,67417.0,0.00165]
[1729747513155,0.70716214,67418.0,67417.0,0.00165]
[1729747514627,0.44080571,67418.0,67417.0,0.00165]
[1729747514847,0.29799823,67418.0,67417.0,0.18035]
[1729747515089,0.29799823,67418.0,67417.0,0.19542048]
[1729747515292,0.38885085,67418.0,67417.0,0.19542048]
[1729747515444,0.38885085,67418.0,67417.0,0.18035]
[1729747516275,0.54532664,67418.0,67417.0,0.18035]
[1729747517239,0.41185085,67418.0,67417.0,0.18035]
[1729747518010,0.41172127,67418.0,67417.0,0.18035]
[1729747520936,0.32086865,67418.0,67417.0,0.18035]
[1729747521558,0.41172127,67418.0,67417.0,0.18035]
[1729747522980,0.24751462,67418.0,67417.0,0.18035]
[1729747524002,0.156662,67418.0,67417.0,0.18035]
[1729747524481,0.156662,67418.0,67417.0,0.1954192]
[1729747524705,0.156662,67418.0,67417.0,0.18035]
[1729747524931,0.156662,67418.0,67417.0,0.1954192]
[1729747525169,0.156662,67418.0,67417.0,0.18035]
[1729747525399,0.156662,67418.0,67417.0,0.1954192]
[1729747525619,0.156662,67418.0,67417.0,0.18035]
[1729747525824,0.156662,67418.0,67417.0,0.1954192]
[1729747526030,0.156662,67418.0,67417.0,0.18035]
[1729747526183,0.156662,67418.0,67417.0,0.1954192]
[1729747526409,0.156662,67418.0,67417.0,0.18035]
[1729747526579,0.156662,67418.0,67417.0,0.1954192]
[1729747542279,0.156662,67418.0,67417.0,0.0982192]
[1729747542598,0.156662,67418.0,67417.0,0.08315]
[1729747553766,0.09172762,67419.0,67418.0,0.210262]
[1729747553767,0.000875,67419.0,67418.0,0.210262]
[1729747553972,0.000875,67419.0,67418.0,0.29240158]
[1729747554181,0.000875,67419.0,67418.0,0.40164119]
[1729747554363,0.000875,67419.0,67418.0,0.45873491]
[1729747554625,0.000875,67419.0,67418.0,0.41460177]
[1729747554826,0.000875,67419.0,67418.0,0.6559582]
[1729747555034,0.000825,67428.0,67427.0,0.118646]
[1729747555246,0.22297704,67439.0,67431.0,0.0775]
[1729747555452,0.015,67439.0,67432.0,0.00463958]
[1729747555625,0.015,67439.0,67433.0,0.00463958]
[1729747555867,0.03,67446.0,67438.0,0.09085262]
[1729747556062,0.005,67444.0,67440.0,0.196123]
[1729747556313,0.025,67446.0,67440.0,0.08213958]
[1729747556533,0.025,67446.0,67440.0,0.44211901]
[1729747556744,0.025,67446.0,67440.0,0.64307439]
[1729747556947,0.025,67446.0,67440.0,0.55222177]
[1729747557138,0.025,67446.0,67440.0,0.46136915]
[1729747560663,0.0125,67446.0,67440.0,0.21926534]
[1729747561284,0.0125,67446.0,67440.0,0.21462576]
[1729747567846,0.005,67444.0,67440.0,0.13712576]
[1729747567996,0.12053262,67441.0,67440.0,0.01850276]
[1729747568237,0.005,67439.0,67436.0,0.22297704]
[1729747568628,0.005,67439.0,67430.0,0.0916]
[1729747568825,0.005,67439.0,67438.0,0.118627]
[1729747569118,0.005,67439.0,67438.0,0.13708056]
[1729747569551,0.005,67439.0,67438.0,0.01845356]
[1729747569937,0.146625,67439.0,67438.0,0.01845356]
[1729747570300,0.005,67435.0,67433.0,0.118636]
[1729747570503,0.005,67435.0,67430.0,0.237283]
[1729747570679,0.005,67435.0,67432.0,0.118637]
[1729747570912,0.118629,67437.0,67424.0,0.11865]
[1729747570913,0.005,67427.0,67424.0,0.11865]
[1729747571109,0.005,67427.0,67423.0,0.237307]
[1729747571318,0.005,67427.0,67424.0,0.11865]
[1729747571521,0.005,67427.0,67425.0,0.118649]
[1729747571669,0.005,67427.0,67422.0,0.118655]
[1729747571872,0.123647,67427.0,67422.0,0.118654]
[1729747572072,0.005,67427.0,67421.0,0.237314]
[1729747572281,0.005,67427.0,67423.0,0.118652]
[1729747573031,0.005,67427.0,67417.0,0.238978]
[1729747573351,0.005,67427.0,67422.0,0.118653]
[1729747573546,0.005,67427.0,67423.0,0.118653]
[1729747573756,0.005,67427.0,67417.0,0.00160201]
[1729747573757,0.005,67423.0,67417.0,0.00160201]
[1729747574185,0.123654,67423.0,67418.0,0.118661]
[1729747574400,0.005,67423.0,67417.0,0.00160201]
[1729747574574,0.005,67423.0,67420.0,0.118658]
[1729747575196,0.005,67423.0,67422.0,0.118655]
[1729747575360,0.01,67429.0,67417.0,0.00160201]
[1729747575361,0.005,67422.0,67417.0,0.00160201]
[1729747575576,0.005,67422.0,67420.0,0.118658]
[1729747576410,0.005,67422.0,67417.0,0.00160201]
[1729747576612,0.005,67422.0,67420.0,0.118658]
[1729747577200,0.005,67422.0,67421.0,0.118657]
[1729747577569,0.005,67422.0,67419.0,0.11866]
[1729747577770,0.005,67422.0,67417.0,0.00160201]
[1729747578087,0.005,67422.0,67418.0,0.118662]
[1729747578292,0.005,67422.0,67417.0,0.00160201]
[1729747578700,0.005,67422.0,67419.0,0.118659]
[1729747578938,0.005,67422.0,67417.0,0.00160201]
[1729747579113,0.005,67422.0,67421.0,0.118657]
[1729747580500,0.005,67422.0,67421.0,0.13722593]
[1729747583369,0.015,67428.0,67427.0,0.118646]
[1729747583841,0.015,67428.0,67427.0,0.13720194]
[1729747584950,0.005,67428.0,67427.0,0.13720194]
[1729747585120,0.005,67428.0,67427.0,0.01855594]
[1729747585325,0.005,67428.0,67427.0,0.118646]
[1729747585556,0.005,67428.0,67427.0,0.13720194]
[1729747586132,0.023,67430.0,67429.0,0.118643]
[1729747586344,0.023,67430.0,67427.0,0.13720094]
[1729747586542,0.023,67430.0,67429.0,0.01855211]
[1729747586792,0.023,67430.0,67427.0,0.118645]
[1729747587000,0.028,67430.0,67429.0,0.01855211]
[1729747587223,0.028,67430.0,67427.0,0.118645]
[1729747587224,0.023,67430.0,67428.0,0.01855402]
[1729747587433,0.028,67430.0,67429.0,0.01855211]
[1729747587857,0.023,67430.0,67427.0,0.118645]
[1729747588068,0.023,67430.0,67429.0,0.01855211]
[1729747588453,0.023,67430.0,67427.0,0.118645]
[1729747588693,0.023,67430.0,67429.0,0.01855211]
[1729747589107,0.000825,67428.0,67427.0,0.118645]
[1729747589314,0.000825,67428.0,67425.0,0.42342504]
[1729747589536,0.005825,67428.0,67426.0,0.12328532]
[1729747589765,0.000825,67428.0,67426.0,0.118647]
[1729747590387,0.005825,67428.0,67425.0,0.0818]
[1729747590598,0.015825,67428.0,67426.0,0.00463832]
[1729747590841,0.015825,67428.0,67425.0,0.0818]
[1729747591017,0.015825,67428.0,67426.0,0.00463832]
[1729747591220,0.015825,67428.0,67425.0,0.0818]
[1729747591553,0.015825,67428.0,67424.0,0.11865]
[1729747591755,0.015825,67428.0,67426.0,0.00463833]
[1729747591972,0.015825,67428.0,67425.0,0.11865]
[1729747592192,0.015825,67428.0,67426.0,0.00463832]
[1729747592423,0.015825,67428.0,67425.0,0.11865]
[1729747592424,0.015825,67428.0,67427.0,0.00463832]
[1729747592633,0.005825,67428.0,67425.0,0.11865]
[1729747592882,0.015825,67428.0,67426.0,0.00463832]
[1729747593061,0.118646,67427.0,67422.0,0.118654]
[1729747593292,0.118646,67427.0,67423.0,0.12329032]
[1729747593517,0.118646,67427.0,67424.0,0.00463832]
[1729747593721,0.118646,67427.0,67425.0,0.00463832]
[1729747593894,0.118646,67427.0,67421.0,0.319113]
[1729747593895,0.118646,67427.0,67426.0,0.00463832]
[1729747594116,0.118646,67427.0,67422.0,0.118655]
[1729747594244,0.118646,67427.0,67421.0,0.0818]
[1729747594245,0.118646,67427.0,67423.0,0.00463847]
[1729747594443,0.118646,67427.0,67424.0,0.00463847]
[1729747594639,0.118649,67426.0,67422.0,0.118655]
[1729747594836,0.118646,67427.0,67423.0,0.00463849]
[1729747595038,0.118646,67427.0,67422.0,0.118654]
[1729747595240,0.118646,67427.0,67424.0,0.00463852]
[1729747595441,0.118646,67427.0,67425.0,0.02316661]
[1729747595683,0.118646,67427.0,67425.0,0.01852809]
[1729747595888,0.005825,67428.0,67421.0,0.0818]
[1729747596090,0.12447,67428.0,67426.0,0.01852786]
[1729747596311,0.12447,67428.0,67423.0,0.118652]
[1729747596518,0.12447,67428.0,67427.0,0.01852586]
[1729747596687,0.12447,67428.0,67423.0,0.118652]
[1729747596889,0.361761,67428.0,67427.0,0.01852586]
[1729747597128,0.118646,67427.0,67422.0,0.118654]
[1729747597304,0.118646,67427.0,67423.0,0.00463852]
[1729747597482,0.118646,67427.0,67424.0,0.00463852]
[1729747597838,0.118646,67427.0,67422.0,0.118654]
[1729747597839,0.118646,67427.0,67425.0,0.00463852]
[1729747598042,0.118646,67427.0,67426.0,0.00463852]
[1729747598531,0.005825,67428.0,67426.0,0.00463852]
[1729747598747,0.005825,67428.0,67427.0,0.00463857]
[1729747599169,0.12447,67428.0,67427.0,0.00463857]
[1729747600878,0.12447,67428.0,67422.0,0.22297704]
[1729747600879,0.118647,67427.0,67422.0,0.24627061]
[1729747601754,0.118648,67426.0,67422.0,0.118655]
[1729747602967,0.361761,67428.0,67422.0,0.118655]
[1729747603204,0.361761,67428.0,67420.0,0.237316]
[1729747603205,0.118647,67427.0,67421.0,0.355971]
[1729747603442,0.118647,67427.0,67423.0,0.118653]
[1729747604139,0.005,67423.0,67417.0,0.07720201]
[1729747604364,0.118657,67421.0,67418.0,0.00742172]
[1729747604582,0.123655,67423.0,67419.0,0.00742172]
[1729747604785,0.123655,67423.0,67420.0,0.00742172]
[1729747604993,0.123655,67423.0,67421.0,0.00742172]
[1729747605203,0.123655,67423.0,67419.0,0.11866]
[1729747605405,0.123655,67423.0,67420.0,0.12607981]
[1729747605406,0.005,67423.0,67420.0,0.12607981]
[1729747605580,0.005,67423.0,67421.0,0.00742181]
[1729747605789,0.005,67423.0,67420.0,0.118658]
[1729747606003,0.005,67423.0,67421.0,0.00742181]
[1729747606176,0.005,67423.0,67420.0,0.118658]
[1729747606548,0.005,67423.0,67421.0,0.00742181]
[1729747606723,0.005,67423.0,67420.0,0.118658]
[1729747606922,0.005,67423.0,67421.0,0.00742181]
[1729747607132,0.005,67423.0,67420.0,0.118658]
[1729747607977,0.005,67420.0,67417.0,0.00160201]
[1729747608185,0.12366,67420.0,67417.0,0.00160201]
[1729747608414,0.23751462,67418.0,67417.0,0.00160201]
[1729747608890,0.33521462,67418.0,67417.0,0.00160201]
[1729747609542,0.37957082,67418.0,67417.0,0.00160201]
[1729747609778,0.38179546,67418.0,67417.0,0.00160201]
[1729747609987,0.33943926,67418.0,67417.0,0.00160201]
[1729747610399,0.33743926,67418.0,67417.0,0.00160201]
[1729747610610,0.38179546,67418.0,67417.0,0.00160201]
[1729747610813,0.33743926,67418.0,67417.0,0.00160201]
[1729747611237,0.33943926,67418.0,67417.0,0.00160201]
[1729747611474,0.40597356,67418.0,67417.0,0.00160201]
[1729747611692,0.40397356,67418.0,67417.0,0.00160201]
[1729747612322,0.40597356,67418.0,67417.0,0.00160201]
[1729747612533,0.50337441,67418.0,67417.0,0.00160201]
[1729747612735,0.33943926,67418.0,67417.0,0.00160201]
[1729747612937,0.33743926,67418.0,67417.0,0.00160201]
[1729747613342,0.40404481,67418.0,67417.0,0.00160201]
[1729747613558,0.50139376,67418.0,67417.0,0.00160201]
[1729747615141,0.33943926,67418.0,67417.0,0.00160201]
[1729747615355,0.33743926,67418.0,67417.0,0.00160201]
[1729747615958,0.34743926,67418.0,67417.0,0.00160201]
[1729747618350,0.34943926,67418.0,67417.0,0.00160201]
[1729747620219,0.34743926,67418.0,67417.0,0.00160201]
[1729747620446,0.34943926,67418.0,67417.0,0.00160201]
[1729747621555,0.34743926,67418.0,67417.0,0.00160201]
[1729747625451,0.4140183,67418.0,67417.0,0.00160201]
[1729747627517,0.34743926,67418.0,67417.0,0.00160201]
[1729747635536,0.41400053,67418.0,67417.0,0.00160201]
[1729747636208,0.41401306,67418.0,67417.0,0.00160201]
[1729747636367,0.41601306,67418.0,67417.0,0.00160201]
[1729747637224,0.41401306,67418.0,67417.0,0.00160201]
[1729747638415,0.41601306,67418.0,67417.0,0.00160201]
[1729747638610,0.34943926,67418.0,67417.0,0.00160201]
[1729747639213,0.51331235,67418.0,67417.0,0.00160201]
[1729747639642,0.51331235,67418.0,67411.0,0.00165]
[1729747639643,0.038,67412.0,67411.0,0.00165]
[1729747639854,0.76288205,67412.0,67411.0,0.00165]
[1729747640107,0.94148545,67412.0,67411.0,0.00165]
[1729747640333,0.92679487,67412.0,67411.0,0.00165]
[1729747640576,0.99667076,67412.0,67411.0,0.00165]
[1729747643600,1.00045396,67412.0,67411.0,0.00165]
[1729747646675,0.99667076,67412.0,67411.0,0.00165]
[1729747648406,1.00041146,67412.0,67411.0,0.00165]
[1729747650447,0.92679487,67412.0,67411.0,0.00165]
[1729747650648,0.75494225,67412.0,67411.0,0.00165]
[1729747650824,0.84579487,67412.0,67411.0,0.00165]
[1729747652880,0.39758582,67412.0,67411.0,0.00165]
[1729747653116,0.39958582,67412.0,67411.0,0.00165]
[1729747653300,0.51052951,67412.0,67411.0,0.00165]
[1729747653501,0.39958582,67412.0,67411.0,0.00165]
[1729747654509,0.42258582,67412.0,67411.0,0.00165]
[1729747656479,0.7062113,67412.0,67411.0,0.00165]
[1729747656689,0.8761113,67412.0,67411.0,0.00165]
[1729747661195,0.83184225,67412.0,67411.0,0.00165]
[1729747662205,0.83179447,67412.0,67411.0,0.00165]
[1729747671318,0.96496733,67412.0,67411.0,0.00165]
[1729747671535,0.87459434,67412.0,67411.0,0.00165]
[1729747673848,0.7107293,67412.0,67411.0,0.00165]
[1729747675108,0.86123311,67412.0,67411.0,0.00165]
[1729747681227,0.7107293,67412.0,67411.0,0.00165]
[1729747697327,0.80158192,67412.0,67411.0,0.00165]
[1729747703836,0.89072192,67412.0,67411.0,0.00165]
[1729747704040,0.80158192,67412.0,67411.0,0.00165]
[1729747713243,0.96552763,67412.0,67411.0,0.00165]
[1729747713478,1.11603144,67412.0,67411.0,0.00165]
[1729747715850,0.34954262,67402.0,67401.0,0.22297704]
[1729747716079,0.66399214,67402.0,67401.0,0.22297704]
[1729747716276,0.256692,67401.0,67400.0,0.09175]
[1729747716529,0.42063771,67401.0,67400.0,0.09175]
[1729747716983,0.42109235,67401.0,67400.0,0.09175]
[1729747717206,0.42331799,67401.0,67400.0,0.09175]
[1729747721988,0.42335293,67401.0,67400.0,0.09175]
[1729747722412,0.42335302,67401.0,67400.0,0.09175]
[1729747726771,0.4233548,67401.0,67400.0,0.09175]
[1729747730082,0.4233548,67401.0,67399.0,0.00165]
[1729747730083,0.256694,67400.0,67399.0,0.00165]
[1729747730302,0.79392284,67400.0,67399.0,0.00165]
[1729747730670,0.79592284,67400.0,67399.0,0.00165]
[1729747732376,0.63148568,67400.0,67399.0,0.00165]
[1729747732578,0.78198949,67400.0,67399.0,0.00165]
[1729747733201,0.78198949,67400.0,67370.0,0.00165]
[1729747733202,0.017,67384.0,67370.0,0.00165]
[1729747733405,0.49315706,67384.0,67375.0,0.30187704]
[1729747733584,0.125727,67381.0,67375.0,0.30187704]
[1729747733794,0.48093605,67381.0,67375.0,0.30187704]
[1729747733994,0.39008343,67381.0,67375.0,0.0789]
[1729747734195,0.47893605,67381.0,67375.0,0.0789]
[1729747734393,0.38808343,67381.0,67375.0,0.0789]
[1729747734617,0.39008343,67381.0,67375.0,0.0789]
[1729747735640,0.48093605,67381.0,67375.0,0.0789]
[1729747737621,0.66116673,67381.0,67375.0,0.0789]
[1729747737823,0.66116673,67381.0,67370.0,0.09245]
[1729747738565,0.66116673,67381.0,67370.0,0.00165]
[1729747738566,0.75246673,67381.0,67370.0,0.00165]
[1729747738979,0.75620944,67381.0,67370.0,0.00165]
[1729747741489,0.83590944,67381.0,67370.0,0.00165]
[1729747742292,0.96913167,67381.0,67370.0,0.00165]
[1729747742527,1.00026146,67381.0,67370.0,0.00165]
[1729747743154,1.13348369,67381.0,67370.0,0.00165]
[1729747743382,1.00026146,67381.0,67370.0,0.00165]
[1729747743570,1.13339871,67381.0,67370.0,0.00165]
[1729747744434,1.00026146,67381.0,67370.0,0.00165]
[1729747745019,0.92056146,67381.0,67370.0,0.00165]
[1729747746454,0.82926146,67381.0,67370.0,0.00165]
[1729747746673,0.75903078,67381.0,67370.0,0.00165]
[1729747747366,0.57732554,67381.0,67370.0,0.00165]
[1729747747578,0.75903078,67381.0,67370.0,0.00165]
[1729747750532,0.75831119,67381.0,67370.0,0.00165]
[1729747752213,0.57660595,67381.0,67370.0,0.00165]
[1729747752436,0.75831119,67381.0,67370.0,0.00165]
[1729747753514,0.86909945,67381.0,67370.0,0.00165]
[1729747754353,0.86905269,67381.0,67370.0,0.00165]
[1729747757256,0.68734745,67381.0,67370.0,0.00165]
[1729747757454,0.86905269,67381.0,67370.0,0.00165]
[1729747758750,0.86905269,67381.0,67375.0,0.0767]
[1729747761316,0.75826448,67381.0,67375.0,0.0767]
[1729747765512,0.61936553,67381.0,67375.0,0.0767]
[1729747765747,0.80107077,67381.0,67375.0,0.0767]
[1729747766419,0.95157458,67381.0,67370.0,0.08155]
[1729747767280,0.80107077,67381.0,67370.0,0.08155]
[1729747769172,0.70821815,67381.0,67370.0,0.08155]
[1729747769373,0.55102752,67381.0,67380.0,0.08155]
[1729747769535,0.48604281,67381.0,67380.0,0.08155]
[1729747769736,0.39731272,67381.0,67380.0,0.08155]
[1729747770337,0.48625633,67381.0,67380.0,0.08155]
[1729747771281,0.50925633,67381.0,67380.0,0.08155]
[1729747771482,0.51137886,67381.0,67380.0,0.08155]
[1729747771707,0.51137886,67381.0,67362.0,0.35628]
[1729747771708,0.007,67363.0,67362.0,0.35628]
[1729747771907,0.007,67363.0,67362.0,0.36092259]
[1729747772122,0.007,67363.0,67362.0,0.37857792]
[1729747772398,0.007,67363.0,67362.0,0.02229792]
[1729747772759,0.007,67363.0,67362.0,0.02229807]
[1729747773943,0.007,67363.0,67362.0,0.00464274]
[1729747774601,0.007,67363.0,67362.0,0.19968599]
[1729747776414,0.007,67363.0,67362.0,0.19504325]
[1729747776620,0.007,67363.0,67362.0,0.19968604]
[1729747782676,0.007,67363.0,67362.0,0.20133804]
[1729747787555,0.007,67363.0,67362.0,0.19669525]
[1729747787757,0.007,67363.0,67362.0,0.2013379]
[1729747792497,0.007,67363.0,67362.0,0.19669525]
[1729747792704,0.007,67363.0,67362.0,0.2013379]
[1729747793962,0.007,67363.0,67362.0,0.19669525]
[1729747796190,0.007,67363.0,67362.0,0.20133789]
[1729747796708,0.007,67363.0,67362.0,0.20598053]
[1729747799279,0.007,67363.0,67362.0,0.10848053]
[1729747799481,0.007,67363.0,67362.0,0.02858053]
[1729747800540,0.007,67363.0,67362.0,0.02858066]
[1729747800763,0.007,67363.0,67362.0,0.02393789]
[1729747800988,0.007,67363.0,67362.0,0.02858066]
[1729747802300,0.12085262,67363.0,67362.0,0.02858066]
[1729747805146,0.03,67363.0,67362.0,0.02858066]
[1729747806191,0.03,67363.0,67362.0,0.02393789]
[1729747806624,0.03,67363.0,67362.0,0.02858076]
[1729747806864,0.030826,67363.0,67362.0,0.02393789]
[1729747807481,0.030826,67363.0,67362.0,0.01929525]
[1729747808338,0.030826,67363.0,67362.0,0.02393812]
[1729747810101,0.030826,67363.0,67362.0,0.02393811]
[1729747815316,0.149585,67363.0,67362.0,0.02393811]
[1729747815545,0.030826,67363.0,67362.0,0.02393811]
[1729747815763,0.149585,67363.0,67362.0,0.01929525]
[1729747815983,0.030826,67363.0,67362.0,0.01929525]
[1729747817773,0.030826,67363.0,67362.0,0.001652]
[1729747821750,0.030826,67363.0,67362.0,0.0198062]
[1729747821981,0.030826,67363.0,67362.0,0.001652]
[1729747823073,0.030826,67363.0,67362.0,0.0198062]
[1729747824624,0.030826,67363.0,67362.0,0.001652]
[1729747825864,0.030826,67363.0,67362.0,0.0198062]
[1729747826091,0.130526,67363.0,67362.0,0.001652]
[1729747827513,0.249285,67363.0,67362.0,0.001652]
[1729747828585,0.130526,67363.0,67362.0,0.001652]
[1729747829142,0.249285,67363.0,67362.0,0.001652]
[1729747830435,0.340885,67363.0,67362.0,0.001652]
[1729747832823,0.43173762,67363.0,67362.0,0.001652]
[1729747835873,0.58224143,67363.0,67362.0,0.001652]
[1729747836573,0.81957318,67363.0,67362.0,0.001652]
[1729747836787,0.82957318,67363.0,67362.0,0.001652]
[1729747838768,0.69224143,67363.0,67362.0,0.001652]
[1729747840699,0.79224143,67363.0,67362.0,0.001652]
[1729747842812,0.79799098,67363.0,67362.0,0.001652]
[1729747843009,0.79599098,67363.0,67362.0,0.001652]
[1729747843215,0.79799098,67363.0,67362.0,0.001652]
[1729747843440,0.93259998,67363.0,67362.0,0.001652]
[1729747845571,0.84174736,67363.0,67362.0,0.001652]
[1729747863225,0.70513836,67363.0,67362.0,0.001652]
[1729747863750,0.72838485,67363.0,67362.0,0.001652]
[1729747864345,0.81923747,67363.0,67362.0,0.001652]
[1729747866834,0.72838485,67363.0,67362.0,0.001652]
[1729747870474,0.77125327,67363.0,67362.0,0.001652]
[1729747871444,0.56820372,67363.0,67362.0,0.001652]
[1729747871648,0.59294143,67363.0,67362.0,0.001652]
[1729747872023,0.50208881,67363.0,67362.0,0.001652]
[1729747872921,0.52508881,67363.0,67362.0,0.001652]
[1729747882905,0.51508881,67363.0,67362.0,0.001652]
[1729747883052,0.52508881,67363.0,67362.0,0.001652]
[1729747885103,0.51508881,67363.0,67362.0,0.001652]
[1729747886444,0.52508881,67363.0,67362.0,0.001652]
[1729747886657,0.51508881,67363.0,67362.0,0.001652]
[1729747887750,0.52508881,67363.0,67362.0,0.001652]
[1729747888762,0.51508881,67363.0,67362.0,0.001652]
[1729747890685,0.52008881,67363.0,67362.0,0.001652]
[1729747890932,0.51508881,67363.0,67362.0,0.001652]
[1729747897752,0.61238881,67363.0,67362.0,0.001652]
[1729747901655,0.73910759,67363.0,67362.0,0.001652]
[1729747901882,0.61238881,67363.0,67362.0,0.001652]
[1729747921969,0.70324143,67363.0,67362.0,0.001652]
[1729747926312,0.61238881,67363.0,67362.0,0.001652]
[1729747926558,0.86776437,67363.0,67362.0,0.001652]
[1729747927002,0.40610794,67363.0,67362.0,0.001652]
[1729747927216,0.40109871,67363.0,67362.0,0.169452]
[1729747927433,0.49019687,67363.0,67362.0,0.169452]
[1729747927641,0.40109871,67363.0,67362.0,0.169452]
[1729747928336,0.259585,67363.0,67362.0,0.169452]
[1729747929044,0.51308077,67363.0,67362.0,0.169452]
[1729747929520,0.42398467,67363.0,67362.0,0.169452]
[1729747930415,0.259585,67363.0,67362.0,0.169452]
[1729747930638,0.32636769,67363.0,67362.0,0.18513417]
[1729747931100,0.32636769,67363.0,67362.0,0.169452]
[1729747931344,0.259585,67363.0,67362.0,0.169452]
[1729747934374,0.30408735,67363.0,67362.0,0.169452]
[1729747934577,0.30408396,67363.0,67362.0,0.169452]
[1729747935675,0.259585,67363.0,67362.0,0.169452]
[1729747937189,0.30407534,67363.0,67362.0,0.169452]
[1729747938228,0.259585,67363.0,67362.0,0.169452]
[1729747939600,0.236585,67363.0,67362.0,0.169452]
[1729747944395,0.236585,67363.0,67362.0,0.078652]
[1729747947279,0.236585,67363.0,67362.0,0.001652]
[1729747954642,0.105826,67363.0,67362.0,0.001652]
[1729747954848,0.100826,67363.0,67362.0,0.18963817]
[1729747955055,0.105826,67363.0,67362.0,0.286281]
[1729747955260,0.105826,67363.0,67362.0,0.405042]
[1729747955475,0.105826,67363.0,67362.0,0.19542838]
[1729747955678,0.107826,67363.0,67362.0,0.31418938]
[1729747956274,0.107826,67363.0,67362.0,0.19542838]
[1729747956684,0.105826,67363.0,67362.0,0.19542838]
[1729747957936,0.105826,67363.0,67362.0,0.31418938]
[1729747958200,0.100826,67363.0,67362.0,0.55554581]
[1729747960789,0.100826,67363.0,67362.0,0.55554503]
[1729747961538,0.100826,67363.0,67362.0,0.46469241]
[1729747961817,0.100826,67363.0,67362.0,0.46469257]
[1729747962274,0.105826,67363.0,67362.0,0.02192776]
[1729747962489,0.224585,67363.0,67362.0,0.02192776]
[1729747962698,0.226585,67363.0,67362.0,0.02192776]
[1729747963127,0.226585,67363.0,67362.0,0.01728555]
[1729747963333,0.126585,67363.0,67362.0,0.01728555]
[1729747963948,0.126585,67363.0,67362.0,0.001652]
[1729747970899,0.002,67354.0,67353.0,0.0767]
[1729747971124,0.002,67354.0,67353.0,0.35062366]
[1729747971901,0.22497704,67360.0,67356.0,0.118771]
[1729747972110,0.22297704,67360.0,67357.0,0.12341185]
[1729747972311,0.22297704,67360.0,67358.0,0.00464285]
[1729747972512,0.002,67360.0,67358.0,0.00464285]
[1729747972710,0.002,67360.0,67355.0,0.118772]
[1729747972918,0.002,67360.0,67359.0,0.00464284]
[1729747974135,0.120764,67361.0,67359.0,0.00464284]
[1729747974250,0.002,67361.0,67356.0,0.118771]
[1729747974465,0.002,67361.0,67357.0,0.00464285]
[1729747974670,0.002,67361.0,67358.0,0.00464285]
[1729747974972,0.002,67361.0,67359.0,0.00464285]
[1729747975174,0.120763,67361.0,67357.0,0.11877]
[1729747975397,0.002,67356.0,67355.0,0.15050381]
[1729747975656,0.002,67356.0,67355.0,0.27391966]
[1729747976958,0.002,67357.0,67356.0,0.118771]
[1729747977092,0.002,67357.0,67356.0,0.12341385]
[1729747977719,0.002,67358.0,67357.0,0.11877]
[1729747977958,0.002,67358.0,67357.0,0.12341285]
[1729747978596,0.007826,67363.0,67358.0,0.407736]
[1729747978772,0.005826,67363.0,67359.0,0.00464285]
[1729747978948,0.005826,67363.0,67358.0,0.288967]
[1729747979155,0.124586,67363.0,67359.0,0.00464284]
[1729747979376,0.124586,67363.0,67358.0,0.288967]
[1729747979572,0.124586,67363.0,67359.0,0.00464284]
[1729747979930,0.124586,67363.0,67358.0,0.288967]
[1729747980173,0.124586,67363.0,67359.0,0.00464284]
[1729747980375,0.124586,67363.0,67358.0,0.288967]
[1729747980598,0.124586,67363.0,67359.0,0.00464284]
[1729747980780,0.002,67362.0,67358.0,0.194267]
[1729747981031,0.002,67362.0,67359.0,0.00464284]
[1729747981257,0.002,67362.0,67358.0,0.194267]
[1729747981512,0.002,67362.0,67360.0,0.118763]
[1729747981959,0.002,67362.0,67358.0,0.194267]
[1729747982194,0.002,67362.0,67359.0,0.00464284]
[1729747982406,0.002,67362.0,67358.0,0.194267]
[1729747982630,0.002,67362.0,67360.0,0.00464284]
[1729747982857,0.002,67362.0,67359.0,0.00464284]
[1729747983109,0.002,67362.0,67360.0,0.00464282]
[1729747983338,0.002,67362.0,67359.0,0.118766]
[1729747983563,0.002,67362.0,67360.0,0.00464282]
[1729747983791,0.002,67362.0,67359.0,0.118766]